[Event "GrandPrix_29.05"]
[Site "Chess.com"]
[Date "2020.05.29"]
[Round "4"]
[White "ebret"]
[Black "Pultis"]
[Result "0-1"]
[WhiteElo "2072"]
[BlackElo "2236"]
[TimeControl "600+2"]
[EndTime "10:51:44 PDT"]
[Termination "Pultis won by resignation"]

1. d4 {[%clk 0:10:01.9]} 1... Nf6 {[%clk 0:09:59.8]} 2. Nf3 {[%clk 0:09:59.7]}
2... g6 {[%clk 0:09:57.6]} 3. g3 {[%clk 0:09:58.9]} 3... Bg7 {[%clk 0:09:58.3]}
4. Bg2 {[%clk 0:09:59.5]} 4... O-O {[%clk 0:09:59.3]} 5. O-O {[%clk 0:09:59.1]}
5... c5 {[%clk 0:09:55.9]} 6. c4 {[%clk 0:09:58.5]} 6... d5 {[%clk 0:09:49.7]}
7. cxd5 {[%clk 0:09:31.4]} 7... Nxd5 {[%clk 0:09:49.1]} 8. dxc5 {[%clk
0:09:31.2]} 8... Na6 {[%clk 0:09:50.1]} 9. e4 {[%clk 0:08:48.9]} 9... Ndb4
{[%clk 0:09:47.3]} 10. Qb3 {[%clk 0:07:53]} 10... Be6 {[%clk 0:09:40]} 11. Qa4
{[%clk 0:07:41.5]} 11... Nd3 {[%clk 0:08:38.9]} 12. Rd1 {[%clk 0:07:34.2]} 12...
Naxc5 {[%clk 0:07:46.6]} 13. Qc2 {[%clk 0:07:30.2]} 13... Nb4 {[%clk 0:07:38.6]}
14. Qe2 {[%clk 0:07:19.8]} 14... Bc4 {[%clk 0:07:34.5]} 15. Rxd8 {[%clk
0:06:33.8]} 15... Bxe2 {[%clk 0:07:33.8]} 16. Rxa8 {[%clk 0:06:29.9]} 16... Rxa8
{[%clk 0:07:35.7]} 17. Nc3 {[%clk 0:06:31.2]} 17... Nc2 {[%clk 0:07:25.4]} 18.
Rb1 {[%clk 0:06:30.2]} 18... Bd3 {[%clk 0:07:24.8]} 19. Bf1 {[%clk 0:06:04.9]}
19... Nd4 {[%clk 0:06:57.5]} 20. Nxd4 {[%clk 0:04:29.7]} 20... Bxb1 {[%clk
0:06:55.6]} 21. Nxb1 {[%clk 0:03:42.9]} 21... Bxd4 {[%clk 0:06:53.5]} 22. Nd2
{[%clk 0:03:39.6]} 22... Rd8 {[%clk 0:06:40.3]} 23. b4 {[%clk 0:03:19.6]} 23...
Nd3 {[%clk 0:06:02.9]} 24. Bxd3 {[%clk 0:02:53.9]} 24... Bc3 {[%clk 0:06:02.4]}
25. Bc4 {[%clk 0:02:48.2]} 25... Bxd2 {[%clk 0:06:02.9]} 26. Ba3 {[%clk
0:02:41.4]} 26... Bxb4 {[%clk 0:06:03]} 27. Bxb4 {[%clk 0:02:31.9]} 27... Rd4
{[%clk 0:06:03.6]} 28. Bxe7 {[%clk 0:02:32.3]} 28... Rxc4 {[%clk 0:06:04.2]} 29.
e5 {[%clk 0:02:32.6]} 29... b5 {[%clk 0:06:01.6]} 30. a3 {[%clk 0:02:17.8]}
30... a5 {[%clk 0:06:01.7]} 31. Bd8 {[%clk 0:02:17]} 31... b4 {[%clk 0:06:02.2]}
32. axb4 {[%clk 0:02:06.3]} 32... axb4 {[%clk 0:06:04.1]} 33. Bf6 {[%clk
0:02:03.6]} 33... b3 {[%clk 0:06:04.6]} 0-1

[Event "GrandPrix_29.05"]
[Site "Chess.com"]
[Date "2020.05.29"]
[Round "4"]
[White "Mizner"]
[Black "switlave"]
[Result "0-1"]
[WhiteElo "2006"]
[BlackElo "2084"]
[TimeControl "600+2"]
[EndTime "10:51:48 PDT"]
[Termination "switlave won by resignation"]

1. d4 {[%clk 0:10:01.9]} 1... Nf6 {[%clk 0:10:00.6]} 2. c4 {[%clk 0:10:02.6]}
2... g6 {[%clk 0:10:01.8]} 3. g3 {[%clk 0:10:03.1]} 3... Bg7 {[%clk 0:10:01.8]}
4. Bg2 {[%clk 0:10:04.4]} 4... d5 {[%clk 0:10:01.8]} 5. cxd5 {[%clk 0:10:06.3]}
5... Nxd5 {[%clk 0:10:03.1]} 6. Nf3 {[%clk 0:10:07.1]} 6... O-O {[%clk
0:10:02.9]} 7. O-O {[%clk 0:10:06.1]} 7... Nb6 {[%clk 0:10:03.9]} 8. Nc3 {[%clk
0:10:00.4]} 8... Nc6 {[%clk 0:10:04.4]} 9. e3 {[%clk 0:09:59.6]} 9... Re8 {[%clk
0:10:05.2]} 10. a3 {[%clk 0:09:45.7]} 10... e5 {[%clk 0:09:30.6]} 11. d5 {[%clk
0:09:41.3]} 11... Ne7 {[%clk 0:09:31.1]} 12. e4 {[%clk 0:09:32.8]} 12... Bg4
{[%clk 0:09:31.1]} 13. h3 {[%clk 0:09:29.9]} 13... Bxf3 {[%clk 0:09:31.6]} 14.
Qxf3 {[%clk 0:09:31.8]} 14... c6 {[%clk 0:09:33.3]} 15. Rd1 {[%clk 0:09:28.1]}
15... cxd5 {[%clk 0:09:33.9]} 16. exd5 {[%clk 0:08:40.6]} 16... Nf5 {[%clk
0:08:49.7]} 17. d6 {[%clk 0:08:41]} 17... Nd4 {[%clk 0:08:00]} 18. Qxb7 {[%clk
0:08:37.9]} 18... Qxd6 {[%clk 0:08:00.6]} 19. Qa6 {[%clk 0:07:54]} 19... Rab8
{[%clk 0:07:20.1]} 20. Qxa7 {[%clk 0:07:06.3]} 20... Nc4 {[%clk 0:05:56.9]} 21.
Qa4 {[%clk 0:06:27]} 21... Rec8 {[%clk 0:05:35.4]} 22. b4 {[%clk 0:06:01.7]}
22... Nb6 {[%clk 0:04:48]} 23. Ne4 {[%clk 0:05:05.2]} 23... Nxa4 {[%clk
0:04:00.1]} 24. Nxd6 {[%clk 0:05:05.6]} 24... Rd8 {[%clk 0:04:01.2]} 25. Rxd4
{[%clk 0:04:08.7]} 25... exd4 {[%clk 0:03:58.5]} 26. Bf4 {[%clk 0:04:10.2]}
26... g5 {[%clk 0:03:38.2]} 27. Bxg5 {[%clk 0:04:06]} 27... Rxd6 {[%clk
0:03:37.7]} 28. Bf4 {[%clk 0:04:07.5]} 28... Rbd8 {[%clk 0:03:26.9]} 0-1

[Event "GrandPrix_29.05"]
[Site "Chess.com"]
[Date "2020.05.29"]
[Round "4"]
[White "aleksandrovaleksei"]
[Black "MilosJi"]
[Result "1-0"]
[WhiteElo "2459"]
[BlackElo "2141"]
[TimeControl "600+2"]
[EndTime "10:51:52 PDT"]
[Termination "aleksandrovaleksei won by resignation"]

1. d4 {[%clk 0:09:31.1]} 1... d5 {[%clk 0:09:56.8]} 2. c4 {[%clk 0:09:31.4]}
2... e6 {[%clk 0:09:56]} 3. Nc3 {[%clk 0:09:31.9]} 3... Nf6 {[%clk 0:09:57]} 4.
cxd5 {[%clk 0:09:32.6]} 4... exd5 {[%clk 0:09:57.5]} 5. Bg5 {[%clk 0:09:33.6]}
5... c6 {[%clk 0:09:58.5]} 6. e3 {[%clk 0:09:34.6]} 6... Bf5 {[%clk 0:09:59.3]}
7. Qf3 {[%clk 0:09:34.1]} 7... Bg6 {[%clk 0:10:00.4]} 8. Bxf6 {[%clk 0:09:35.1]}
8... Qxf6 {[%clk 0:10:02.2]} 9. Qxf6 {[%clk 0:09:36.1]} 9... gxf6 {[%clk
0:10:04.1]} 10. Nf3 {[%clk 0:09:33.2]} 10... Nd7 {[%clk 0:10:03.9]} 11. Nh4
{[%clk 0:09:26.6]} 11... Nb6 {[%clk 0:10:03.2]} 12. O-O-O {[%clk 0:07:50.9]}
12... Bb4 {[%clk 0:09:53.8]} 13. Ne2 {[%clk 0:07:34.1]} 13... Nc4 {[%clk
0:09:52]} 14. Ng3 {[%clk 0:07:13]} 14... Nd6 {[%clk 0:09:39.8]} 15. Bd3 {[%clk
0:06:47.9]} 15... Kf8 {[%clk 0:09:25.7]} 16. f4 {[%clk 0:06:37.2]} 16... Bxd3
{[%clk 0:09:10.3]} 17. Rxd3 {[%clk 0:06:37.5]} 17... Re8 {[%clk 0:09:09.8]} 18.
Nhf5 {[%clk 0:06:34.4]} 18... Nc4 {[%clk 0:09:06.8]} 19. Nh5 {[%clk 0:05:31.6]}
19... Re6 {[%clk 0:08:54]} 20. g4 {[%clk 0:04:32]} 20... Rg8 {[%clk 0:08:49.1]}
21. h3 {[%clk 0:04:32.2]} 21... Ba5 {[%clk 0:08:38.5]} 22. b3 {[%clk 0:04:13.2]}
22... Na3 {[%clk 0:08:31.7]} 23. Kb2 {[%clk 0:04:11.8]} 23... Nb5 {[%clk
0:08:31.9]} 24. a4 {[%clk 0:04:09.4]} 24... Nc7 {[%clk 0:08:31.8]} 25. Rdd1
{[%clk 0:03:52.4]} 25... Bb4 {[%clk 0:08:29.9]} 26. Kc2 {[%clk 0:03:41.2]} 26...
a5 {[%clk 0:08:28.7]} 27. Kd3 {[%clk 0:03:41.7]} 27... Na6 {[%clk 0:08:27.9]}
28. Ke2 {[%clk 0:03:42.5]} 28... Bd6 {[%clk 0:08:25.6]} 29. Kf3 {[%clk
0:03:42.4]} 29... Nb4 {[%clk 0:08:26.2]} 30. h4 {[%clk 0:03:40.2]} 30... Be7
{[%clk 0:08:17.2]} 31. g5 {[%clk 0:03:32.5]} 31... Bd8 {[%clk 0:08:16]} 32. Rh2
{[%clk 0:03:28.1]} 32... Rh8 {[%clk 0:07:59.4]} 33. Rg1 {[%clk 0:03:13.1]} 33...
fxg5 {[%clk 0:07:55.9]} 34. hxg5 {[%clk 0:03:13.4]} 34... f6 {[%clk 0:07:57.3]}
35. Nfg7 {[%clk 0:02:52]} 35... Rd6 {[%clk 0:07:54.5]} 36. Nf5 {[%clk
0:02:51.8]} 36... Re6 {[%clk 0:07:54.9]} 37. g6 {[%clk 0:02:36.4]} 37... hxg6
{[%clk 0:07:51.5]} 38. Rxg6 {[%clk 0:02:37.5]} 38... b6 {[%clk 0:07:32.8]} 39.
Rh4 {[%clk 0:02:32.1]} 39... c5 {[%clk 0:07:31.6]} 40. Nhg7 {[%clk 0:02:29.2]}
40... Rxh4 {[%clk 0:07:26.4]} 41. Nxe6+ {[%clk 0:02:29.3]} 41... Kf7 {[%clk
0:07:27.5]} 42. Nxd8+ {[%clk 0:02:28.4]} 42... Kxg6 {[%clk 0:07:28.9]} 43. Nxh4+
{[%clk 0:02:29.5]} 43... Kh5 {[%clk 0:07:30.4]} 44. Nf5 {[%clk 0:02:22.1]} 44...
c4 {[%clk 0:06:51.1]} 45. bxc4 {[%clk 0:02:21.4]} 45... dxc4 {[%clk 0:06:52.4]}
46. Ng3+ {[%clk 0:02:22.1]} 46... Kg6 {[%clk 0:06:52.3]} 47. Ne2 {[%clk
0:02:16.5]} 47... f5 {[%clk 0:06:45]} 48. Nc3 {[%clk 0:02:09.8]} 1-0

[Event "GrandPrix_29.05"]
[Site "Chess.com"]
[Date "2020.05.29"]
[Round "4"]
[White "Grebnev_A"]
[Black "ehrenfeld"]
[Result "0-1"]
[WhiteElo "2153"]
[BlackElo "2207"]
[TimeControl "600+2"]
[EndTime "10:52:05 PDT"]
[Termination "ehrenfeld won by checkmate"]

1. c4 {[%clk 0:10:01.9]} 1... e5 {[%clk 0:09:52.5]} 2. Nc3 {[%clk 0:10:03.1]}
2... Bb4 {[%clk 0:09:52.3]} 3. Nd5 {[%clk 0:10:02.6]} 3... Bc5 {[%clk
0:09:52.4]} 4. g3 {[%clk 0:10:03.7]} 4... d6 {[%clk 0:09:50.4]} 5. Bg2 {[%clk
0:10:04.1]} 5... a5 {[%clk 0:09:45.9]} 6. e3 {[%clk 0:10:04.8]} 6... Nd7 {[%clk
0:09:44]} 7. Ne2 {[%clk 0:10:05.4]} 7... c6 {[%clk 0:09:43.2]} 8. Ndc3 {[%clk
0:10:05.8]} 8... Ngf6 {[%clk 0:09:39.2]} 9. O-O {[%clk 0:10:06.1]} 9... O-O
{[%clk 0:09:37.9]} 10. Rb1 {[%clk 0:10:06.9]} 10... Bb6 {[%clk 0:09:25]} 11. a3
{[%clk 0:10:05.2]} 11... Re8 {[%clk 0:09:14.6]} 12. d3 {[%clk 0:10:00.8]} 12...
Nf8 {[%clk 0:09:09.2]} 13. b4 {[%clk 0:10:00]} 13... axb4 {[%clk 0:09:08.4]} 14.
axb4 {[%clk 0:10:01.9]} 14... d5 {[%clk 0:09:04.7]} 15. e4 {[%clk 0:08:47.4]}
15... dxc4 {[%clk 0:08:45.3]} 16. dxc4 {[%clk 0:08:46.6]} 16... Be6 {[%clk
0:08:46]} 17. c5 {[%clk 0:08:45.9]} 17... Bc7 {[%clk 0:08:46.5]} 18. Qc2 {[%clk
0:08:40.5]} 18... Qe7 {[%clk 0:08:33]} 19. Na4 {[%clk 0:07:50.1]} 19... Ng6
{[%clk 0:08:17.7]} 20. Be3 {[%clk 0:07:27.4]} 20... h6 {[%clk 0:08:00.9]} 21.
Rfd1 {[%clk 0:07:25.7]} 21... Ng4 {[%clk 0:07:53.2]} 22. Bd2 {[%clk 0:07:24.6]}
22... Nf6 {[%clk 0:07:10.3]} 23. Be3 {[%clk 0:07:06.9]} 23... Nh7 {[%clk
0:07:05.3]} 24. Nec3 {[%clk 0:06:43.2]} 24... Ng5 {[%clk 0:06:52.4]} 25. Nb6
{[%clk 0:06:42.3]} 25... Bxb6 {[%clk 0:06:40.8]} 26. cxb6 {[%clk 0:06:44.2]}
26... Bg4 {[%clk 0:06:41.5]} 27. Rd3 {[%clk 0:06:09]} 27... Nf3+ {[%clk
0:06:20]} 28. Kh1 {[%clk 0:05:43.4]} 28... Ng5 {[%clk 0:05:49.2]} 29. Bc5 {[%clk
0:05:31.4]} 29... Qe6 {[%clk 0:05:46.5]} 30. Rd6 {[%clk 0:04:40.3]} 30... Qc8
{[%clk 0:05:46.1]} 31. Rf1 {[%clk 0:04:33.8]} 31... Bf3 {[%clk 0:05:34.3]} 32.
Bxf3 {[%clk 0:03:11.6]} 32... Nxf3 {[%clk 0:05:32]} 33. Kg2 {[%clk 0:03:13]}
33... Ngh4+ {[%clk 0:05:22.1]} 34. gxh4 {[%clk 0:02:32.3]} 34... Qg4+ {[%clk
0:05:21]} 35. Kh1 {[%clk 0:02:33.7]} 35... Qh3 {[%clk 0:05:21.1]} 36. Qd3 {[%clk
0:02:29.4]} 36... Qxh2# {[%clk 0:05:19.7]} 0-1

[Event "GrandPrix_29.05"]
[Site "Chess.com"]
[Date "2020.05.29"]
[Round "4"]
[White "Pidzsy"]
[Black "rfhfb"]
[Result "1-0"]
[WhiteElo "2209"]
[BlackElo "2135"]
[TimeControl "600+2"]
[EndTime "10:52:15 PDT"]
[Termination "Pidzsy won by resignation"]

1. e4 {[%clk 0:10:01.9]} 1... e5 {[%clk 0:09:58.4]} 2. Bc4 {[%clk 0:10:00.3]}
2... Nf6 {[%clk 0:09:57.8]} 3. Nf3 {[%clk 0:09:58.3]} 3... Bd6 {[%clk
0:09:00.5]} 4. d4 {[%clk 0:09:53.8]} 4... Nc6 {[%clk 0:08:21]} 5. dxe5 {[%clk
0:09:52.3]} 5... Bxe5 {[%clk 0:08:22.3]} 6. O-O {[%clk 0:09:48.5]} 6... O-O
{[%clk 0:08:16.7]} 7. Bg5 {[%clk 0:09:46.8]} 7... d6 {[%clk 0:08:17.3]} 8. Nxe5
{[%clk 0:09:33.8]} 8... Nxe5 {[%clk 0:08:17.6]} 9. Bb3 {[%clk 0:09:29.4]} 9...
h6 {[%clk 0:08:14.6]} 10. Bh4 {[%clk 0:09:30.5]} 10... Ng6 {[%clk 0:08:15.8]}
11. Bxf6 {[%clk 0:09:24.4]} 11... Qxf6 {[%clk 0:08:17.7]} 12. Nc3 {[%clk
0:09:25.5]} 12... Be6 {[%clk 0:08:07.2]} 13. f4 {[%clk 0:09:18.7]} 13... Nxf4
{[%clk 0:07:02.2]} 14. Qd2 {[%clk 0:09:15.5]} 14... g5 {[%clk 0:06:12.4]} 15. g3
{[%clk 0:09:13.5]} 15... Bxb3 {[%clk 0:05:07.7]} 16. axb3 {[%clk 0:08:51.2]}
16... Nh3+ {[%clk 0:05:08]} 17. Kg2 {[%clk 0:08:51]} 17... Qe6 {[%clk
0:05:09.2]} 18. Rf5 {[%clk 0:07:49.8]} 18... g4 {[%clk 0:03:46.5]} 19. Raf1
{[%clk 0:07:48]} 19... Ng5 {[%clk 0:02:14.8]} 20. Rf6 {[%clk 0:07:46.4]} 20...
Qe7 {[%clk 0:00:43.4]} 21. Rxh6 {[%clk 0:06:50.4]} 21... f6 {[%clk 0:00:43.1]}
22. Rfxf6 {[%clk 0:06:29.6]} 22... Nxe4 {[%clk 0:00:15.8]} 23. Rhg6+ {[%clk
0:06:28.4]} 1-0

[Event "GrandPrix_29.05"]
[Site "Chess.com"]
[Date "2020.05.29"]
[Round "4"]
[White "klimkoj"]
[Black "Keks2017"]
[Result "1-0"]
[WhiteElo "2126"]
[BlackElo "2153"]
[TimeControl "600+2"]
[EndTime "10:52:25 PDT"]
[Termination "klimkoj won by resignation"]

1. e4 {[%clk 0:10:01.9]} 1... d6 {[%clk 0:09:59.3]} 2. d4 {[%clk 0:10:00.8]}
2... Nf6 {[%clk 0:09:59.4]} 3. Nc3 {[%clk 0:10:01.3]} 3... g6 {[%clk 0:09:59.7]}
4. Nf3 {[%clk 0:09:57.9]} 4... Bg7 {[%clk 0:10:00.2]} 5. Be3 {[%clk 0:09:56.8]}
5... O-O {[%clk 0:10:00.4]} 6. Qd2 {[%clk 0:09:56.3]} 6... a6 {[%clk 0:10:01.2]}
7. O-O-O {[%clk 0:09:52.9]} 7... b5 {[%clk 0:09:59.7]} 8. Bd3 {[%clk 0:09:52.9]}
8... Bb7 {[%clk 0:09:59.9]} 9. e5 {[%clk 0:09:20.2]} 9... Nd5 {[%clk 0:09:21.9]}
10. Nxd5 {[%clk 0:08:56.8]} 10... Bxd5 {[%clk 0:09:22.3]} 11. h4 {[%clk
0:08:57.5]} 11... h5 {[%clk 0:08:39.3]} 12. Bh6 {[%clk 0:08:46.5]} 12... Nc6
{[%clk 0:08:32.9]} 13. Qg5 {[%clk 0:08:21.9]} 13... e6 {[%clk 0:08:24.2]} 14.
Qe3 {[%clk 0:08:06.1]} 14... Bxf3 {[%clk 0:07:02.5]} 15. gxf3 {[%clk 0:07:58.3]}
15... dxe5 {[%clk 0:06:30.1]} 16. Bxg7 {[%clk 0:07:50.6]} 16... Kxg7 {[%clk
0:06:29.6]} 17. dxe5 {[%clk 0:07:17.4]} 17... Qd4 {[%clk 0:04:53.4]} 18. Be4
{[%clk 0:07:11.4]} 18... Qxe3+ {[%clk 0:04:53.2]} 19. fxe3 {[%clk 0:07:12.1]}
19... Nxe5 {[%clk 0:04:53.9]} 20. Bxa8 {[%clk 0:07:12]} 20... Rxa8 {[%clk
0:04:54.6]} 21. f4 {[%clk 0:06:58.7]} 21... Nc4 {[%clk 0:04:55]} 22. Rhe1 {[%clk
0:06:56.6]} 22... Nd6 {[%clk 0:04:48.9]} 23. e4 {[%clk 0:06:56.1]} 23... Rc8
{[%clk 0:04:40.2]} 24. b3 {[%clk 0:06:46.7]} 24... Kf8 {[%clk 0:04:38.9]} 25.
Rd4 {[%clk 0:06:28.4]} 25... Ke8 {[%clk 0:04:33.1]} 26. Red1 {[%clk 0:06:12.7]}
26... Rb8 {[%clk 0:04:27.8]} 27. c4 {[%clk 0:05:32.2]} 27... bxc4 {[%clk
0:04:07.5]} 28. bxc4 {[%clk 0:05:31.7]} 28... Nb7 {[%clk 0:04:07.7]} 29. Kc2
{[%clk 0:05:05]} 29... Na5 {[%clk 0:03:42.7]} 30. Kc3 {[%clk 0:04:47.4]} 30...
Nc6 {[%clk 0:03:37]} 31. R4d2 {[%clk 0:04:40.1]} 31... Ke7 {[%clk 0:03:10.4]}
32. Rd7+ {[%clk 0:04:38.5]} 32... Ke8 {[%clk 0:03:10.7]} 33. Rxc7 {[%clk
0:04:38.7]} 33... Nb4 {[%clk 0:03:10.7]} 34. Rdd7 {[%clk 0:04:34.9]} 34... Nxa2+
{[%clk 0:03:09.8]} 35. Kd4 {[%clk 0:04:34.9]} 35... f6 {[%clk 0:03:07.7]} 36.
Rh7 {[%clk 0:04:31.4]} 1-0

[Event "GrandPrix_29.05"]
[Site "Chess.com"]
[Date "2020.05.29"]
[Round "4"]
[White "Borsuk_Konstantin"]
[Black "bsnsun"]
[Result "0-1"]
[WhiteElo "1758"]
[BlackElo "2153"]
[TimeControl "600+2"]
[EndTime "10:52:26 PDT"]
[Termination "bsnsun won by resignation"]

1. d4 {[%clk 0:10:01.9]} 1... Nf6 {[%clk 0:09:59.9]} 2. c4 {[%clk 0:10:02]} 2...
e6 {[%clk 0:10:00.8]} 3. Nc3 {[%clk 0:10:02.1]} 3... Bb4 {[%clk 0:09:57.9]} 4.
Qc2 {[%clk 0:10:02.6]} 4... O-O {[%clk 0:09:57.9]} 5. a3 {[%clk 0:10:02.8]} 5...
Bxc3+ {[%clk 0:09:58.7]} 6. Qxc3 {[%clk 0:10:03.5]} 6... d5 {[%clk 0:09:56.4]}
7. f3 {[%clk 0:09:48.1]} 7... c5 {[%clk 0:09:55.2]} 8. cxd5 {[%clk 0:09:09]}
8... cxd4 {[%clk 0:08:23.5]} 9. Qxd4 {[%clk 0:09:07.7]} 9... Nc6 {[%clk
0:08:24.7]} 10. Qd1 {[%clk 0:07:23.2]} 10... exd5 {[%clk 0:08:01.8]} 11. e3
{[%clk 0:06:53.3]} 11... Re8 {[%clk 0:07:52]} 12. Kf2 {[%clk 0:06:48.2]} 12...
d4 {[%clk 0:07:24.5]} 13. e4 {[%clk 0:06:39.1]} 13... Ne5 {[%clk 0:05:47.4]} 14.
Bd3 {[%clk 0:05:29.5]} 14... Be6 {[%clk 0:05:10.1]} 15. Bf4 {[%clk 0:05:18]}
15... Nxd3+ {[%clk 0:04:54.8]} 16. Qxd3 {[%clk 0:05:17.9]} 16... Rc8 {[%clk
0:04:55.8]} 17. Ne2 {[%clk 0:04:47.2]} 17... Bc4 {[%clk 0:04:40.6]} 18. Qxd4
{[%clk 0:04:06.3]} 18... Bxe2 {[%clk 0:04:40.8]} 19. Qxd8 {[%clk 0:04:06.4]}
19... Rexd8 {[%clk 0:04:42.1]} 20. Kxe2 {[%clk 0:04:07.1]} 20... Rc2+ {[%clk
0:04:43.2]} 21. Ke3 {[%clk 0:04:07.4]} 21... Rcd2 {[%clk 0:04:30.2]} 22. Be5
{[%clk 0:02:38.9]} 22... g5 {[%clk 0:04:25.8]} 0-1

[Event "GrandPrix_29.05"]
[Site "Chess.com"]
[Date "2020.05.29"]
[Round "4"]
[White "Bengalas"]
[Black "IMTominho"]
[Result "0-1"]
[WhiteElo "2077"]
[BlackElo "2098"]
[TimeControl "600+2"]
[EndTime "10:52:29 PDT"]
[Termination "IMTominho won by resignation"]

1. d4 {[%clk 0:10:01.9]} 1... d5 {[%clk 0:10:00.4]} 2. c4 {[%clk 0:10:01.7]}
2... c6 {[%clk 0:10:01.5]} 3. Nf3 {[%clk 0:10:01.8]} 3... Nf6 {[%clk 0:10:02.4]}
4. e3 {[%clk 0:10:02.4]} 4... Bf5 {[%clk 0:10:02.9]} 5. Nc3 {[%clk 0:10:03.5]}
5... e6 {[%clk 0:10:04.1]} 6. Nh4 {[%clk 0:10:04.3]} 6... Be4 {[%clk 0:10:05.3]}
7. f3 {[%clk 0:10:02.5]} 7... Bg6 {[%clk 0:10:05.6]} 8. Qb3 {[%clk 0:09:43.3]}
8... Qc7 {[%clk 0:10:01.1]} 9. Nxg6 {[%clk 0:08:34.3]} 9... hxg6 {[%clk
0:09:59.6]} 10. g3 {[%clk 0:08:35.6]} 10... Nbd7 {[%clk 0:09:54.4]} 11. cxd5
{[%clk 0:07:59.2]} 11... exd5 {[%clk 0:09:51.2]} 12. Bd2 {[%clk 0:07:40.3]}
12... Bd6 {[%clk 0:09:43.8]} 13. f4 {[%clk 0:07:41.4]} 13... O-O {[%clk
0:09:25.7]} 14. Bg2 {[%clk 0:07:17.9]} 14... Nb6 {[%clk 0:09:18.8]} 15. O-O
{[%clk 0:07:02.4]} 15... Nc4 {[%clk 0:09:13.8]} 16. Qc2 {[%clk 0:07:03.1]} 16...
Rfe8 {[%clk 0:09:11.2]} 17. Rfe1 {[%clk 0:06:59.4]} 17... Re7 {[%clk 0:08:48.2]}
18. e4 {[%clk 0:06:33.9]} 18... Qb6 {[%clk 0:08:08]} 19. Qd3 {[%clk 0:03:35.2]}
19... Nxb2 {[%clk 0:08:00.3]} 20. Qc2 {[%clk 0:03:32.1]} 20... Nc4 {[%clk
0:06:24.6]} 21. Qd3 {[%clk 0:03:31.1]} 21... Nxd2 {[%clk 0:06:03.4]} 22. Qxd2
{[%clk 0:03:31.1]} 22... dxe4 {[%clk 0:06:04.1]} 23. Bxe4 {[%clk 0:02:14.8]}
23... Bb4 {[%clk 0:05:56.4]} 24. Bf3 {[%clk 0:02:12.1]} 24... Rd7 {[%clk
0:05:49.9]} 25. Red1 {[%clk 0:02:05]} 25... Rad8 {[%clk 0:05:14.2]} 26. Qc2
{[%clk 0:01:52]} 26... Rxd4 {[%clk 0:05:11.9]} 27. Kg2 {[%clk 0:01:53.3]} 27...
Qc5 {[%clk 0:04:53.9]} 0-1

[Event "GrandPrix_29.05"]
[Site "Chess.com"]
[Date "2020.05.29"]
[Round "4"]
[White "Haykos"]
[Black "Denis0027"]
[Result "1-0"]
[WhiteElo "2204"]
[BlackElo "2165"]
[TimeControl "600+2"]
[EndTime "10:52:53 PDT"]
[Termination "Haykos won by resignation"]

1. e4 {[%clk 0:10:01.4]} 1... d6 {[%clk 0:09:59.3]} 2. Nf3 {[%clk 0:09:55]} 2...
e5 {[%clk 0:09:57.9]} 3. d4 {[%clk 0:09:54.2]} 3... exd4 {[%clk 0:09:53.5]} 4.
Nxd4 {[%clk 0:09:50.7]} 4... Nf6 {[%clk 0:09:55]} 5. Nc3 {[%clk 0:09:51.8]} 5...
Nc6 {[%clk 0:09:54.4]} 6. Be2 {[%clk 0:09:42.2]} 6... g6 {[%clk 0:09:47.4]} 7.
Nxc6 {[%clk 0:09:02.7]} 7... bxc6 {[%clk 0:09:46.5]} 8. e5 {[%clk 0:09:04.2]}
8... Nd7 {[%clk 0:09:08.7]} 9. exd6 {[%clk 0:08:49.2]} 9... cxd6 {[%clk
0:08:55.7]} 10. O-O {[%clk 0:08:50.1]} 10... Be7 {[%clk 0:08:53.1]} 11. Bh6
{[%clk 0:08:42.3]} 11... d5 {[%clk 0:08:50.1]} 12. Re1 {[%clk 0:08:41.7]} 12...
f6 {[%clk 0:08:43.6]} 13. Nxd5 {[%clk 0:08:15]} 13... cxd5 {[%clk 0:08:25.8]}
14. Qxd5 {[%clk 0:08:16.9]} 14... Nb6 {[%clk 0:08:25.8]} 15. Qb3 {[%clk
0:06:53]} 15... Bb7 {[%clk 0:07:25.4]} 16. Bb5+ {[%clk 0:06:48.6]} 16... Nd7
{[%clk 0:07:17]} 17. Rad1 {[%clk 0:06:49.1]} 17... Bc8 {[%clk 0:07:14.8]} 18.
Qd5 {[%clk 0:06:12.1]} 18... Rb8 {[%clk 0:07:07.5]} 19. Bc4 {[%clk 0:06:11.3]}
19... Ne5 {[%clk 0:06:44]} 20. Rxe5 {[%clk 0:04:29.8]} 20... Qxd5 {[%clk
0:06:44]} 21. Rexd5 {[%clk 0:04:31.4]} 21... Be6 {[%clk 0:06:38.7]} 22. R5d4
{[%clk 0:04:29.1]} 22... Bxc4 {[%clk 0:06:39.6]} 23. Rxc4 {[%clk 0:04:31]} 23...
g5 {[%clk 0:06:41.1]} 24. Rc7 {[%clk 0:04:25.6]} 24... Kf7 {[%clk 0:06:36]} 25.
h4 {[%clk 0:04:22]} 25... Rhg8 {[%clk 0:06:29.9]} 26. hxg5 {[%clk 0:04:16.7]}
26... fxg5 {[%clk 0:06:31.8]} 27. Rdd7 {[%clk 0:04:12.6]} 27... Rbe8 {[%clk
0:06:21.5]} 28. f4 {[%clk 0:04:13.8]} 28... gxf4 {[%clk 0:05:55.9]} 29. Bxf4
{[%clk 0:04:11.9]} 29... Ke6 {[%clk 0:05:57.4]} 30. Rd3 {[%clk 0:03:38.8]} 30...
Kf5 {[%clk 0:05:38.7]} 31. Rf3 {[%clk 0:03:32.7]} 31... Kg4 {[%clk 0:05:20.7]}
32. Rg3+ {[%clk 0:03:26.2]} 32... Kxf4 {[%clk 0:05:15]} 33. Rxg8 {[%clk
0:03:27.5]} 33... Rxg8 {[%clk 0:05:09.1]} 34. Rxe7 {[%clk 0:03:28.7]} 34... Rc8
{[%clk 0:05:06.8]} 35. c3 {[%clk 0:03:28.4]} 35... Rb8 {[%clk 0:05:03.9]} 36. b3
{[%clk 0:03:29.4]} 36... h5 {[%clk 0:04:56.7]} 37. Rxa7 {[%clk 0:03:29]} 37...
Rd8 {[%clk 0:04:56.9]} 38. Kh2 {[%clk 0:03:25.4]} 38... Rd1 {[%clk 0:04:41.6]}
39. a4 {[%clk 0:03:19.5]} 39... h4 {[%clk 0:04:42.2]} 40. Rh7 {[%clk 0:03:16.7]}
40... Kg4 {[%clk 0:04:33]} 41. a5 {[%clk 0:03:17.5]} 41... Rc1 {[%clk
0:04:21.2]} 42. a6 {[%clk 0:03:12]} 1-0